{"text_format":"1","workbook":"xlsx","n_sheets":2,"sheets":["ГРАФИК","врем"],"not_rendered":{"charts":0,"images":2,"macros":1,"external_links":0,"defined_names":0,"comments":0,"pivot_tables":0},"unopened":[],"bounds":{"document_bytes":16777216,"sheet_cells":100000,"rows_first":2000,"rows_last":500,"rows_between":2000,"halvings":0,"cell_chars":16384,"cell_head_chars":4096},"cells_cut":0,"cells_raw":0,"read":"whole","date_system":"1900"}

{"sheet":"ГРАФИК","index":0,"n_rows":14,"n_cols":41,"rows_kept":14,"cut":false,"hidden":false,"merged":[[1,13,1,17]]}
["шаблон"]
["8/6",219,null,null,null,null,null,null,null,null,null,null,null,"2026-02-01"]
["8","уч",null,null,null,null,null,null,null,null,null,null,null,null,null,null,null,null,null,null,null,null,null,null,null,null,null,null,null,null,null,null,null,null,null,null,null,0.1,0.2,0.1,0.2]
[8,"море",null,"2026-02-01","2026-02-02","2026-02-03","2026-02-04","2026-02-05","2026-02-06","2026-02-07","2026-02-08","2026-02-09","2026-02-10","2026-02-11","2026-02-12","2026-02-13","2026-02-14","2026-02-15","2026-02-16","2026-02-17","2026-02-18","2026-02-19","2026-02-20","2026-02-21","2026-02-22","2026-02-23","2026-02-24","2026-02-25","2026-02-26","2026-02-27","2026-02-28","2026-03-01","2026-03-02","2026-03-03",null,null,null,113,113,219,219]
[8,"море","Замятина М.В.","8","7","7","12","12",null,"7","8","8",null,null,null,null,"7",null,null,null,null,"7","7","7","7","7","7","7","7","7",null,null,null,null,null,null,{"$f":"C5","v":"Замятина М.В."},{"$f":"SumTsv(D5:AH5,$A$3)","v":{"$error":"#NAME?"}},{"$f":"SumTsv(D5:AH5,$A$4)","v":{"$error":"#NAME?"}},{"$f":"SumTsv(D5:AH5,$A$5)","v":{"$error":"#NAME?"}},{"$f":"SumTsv(D5:AH5,$A$2)","v":{"$error":"#NAME?"}}]
[null,null,"Костина Л.Я.",null,"7","7",null,"8",null,null,"8","8",null,null,null,null,null,null,null,null,null,"7","7","7","7","7",null,null,null,null,null,null,null,null,null,null,{"$f":"C6","v":"Костина Л.Я."},{"$f":"SumTsv(D6:AH6,$A$3)","v":{"$error":"#NAME?"}},{"$f":"SumTsv(D6:AH6,$A$4)","v":{"$error":"#NAME?"}},{"$f":"SumTsv(D6:AH6,$A$5)","v":{"$error":"#NAME?"}},{"$f":"SumTsv(D6:AH6,$A$2)","v":{"$error":"#NAME?"}}]
[null,null,"Петрова",null,"8","7","7","7",null,null,null,null,null,null,null,null,null,null,null,null,null,null,null,null,null,null,null,null,null,null,null,null,null,null,null,null,"Петрова",{"$error":"#NAME?"},{"$error":"#NAME?"},{"$error":"#NAME?"},{"$error":"#NAME?"}]
[null,null,"Иванова ",null,"8","7",null,null,null,null,null,null,null,null,null,null,null,null,null,null,null,null,null,null,null,null,null,null,null,null,null,null,null,null,null,null,"Иванова ",{"$f":"SumTsv(D8:AH8,$A$3)","v":{"$error":"#NAME?"}},{"$f":"SumTsv(D8:AH8,$A$4)","v":{"$error":"#NAME?"}},{"$f":"SumTsv(D8:AH8,$A$5)","v":{"$error":"#NAME?"}},{"$f":"SumTsv(D8:AH8,$A$2)","v":{"$error":"#NAME?"}}]
[null,null,null,null,null,null,null,null,null,null,null,null,null,null,null,null,null,null,null,null,null,null,null,null,null,null,null,null,null,null,null,null,null,null,null,null,0,{"$error":"#NAME?"},{"$error":"#NAME?"},{"$error":"#NAME?"},{"$error":"#NAME?"}]
[null,null,null,null,null,null,null,null,null,null,null,null,null,null,null,null,null,null,null,null,null,null,null,null,null,null,null,null,null,null,null,null,null,null,null,null,0,{"$error":"#NAME?"},{"$error":"#NAME?"},{"$error":"#NAME?"},{"$error":"#NAME?"}]
[null,null,null,null,null,null,null,null,null,null,null,null,null,null,null,null,null,null,null,null,null,null,null,null,null,null,null,null,null,null,null,null,null,null,null,null,0,{"$error":"#NAME?"},{"$error":"#NAME?"},{"$error":"#NAME?"},{"$error":"#NAME?"}]
[null,null,null,null,null,null,null,null,null,null,null,null,null,null,null,null,null,null,null,null,null,null,null,null,null,null,null,null,null,null,null,null,null,null,null,null,0,{"$error":"#NAME?"},{"$error":"#NAME?"},{"$error":"#NAME?"},{"$error":"#NAME?"}]
[null,null,null,null,null,null,null,null,null,null,null,null,null,null,null,null,null,null,null,null,null,null,null,null,null,null,null,null,null,null,null,null,null,null,null,null,0,{"$error":"#NAME?"},{"$error":"#NAME?"},{"$error":"#NAME?"},{"$error":"#NAME?"}]
[null,null,null,null,null,null,null,null,null,null,null,null,null,null,null,null,null,null,null,null,null,null,null,null,null,null,null,null,null,null,null,null,null,null,null,null,0,{"$error":"#NAME?"},{"$error":"#NAME?"},{"$error":"#NAME?"},{"$error":"#NAME?"}]

{"sheet":"врем","index":1,"n_rows":15,"n_cols":16,"rows_kept":15,"cut":false,"hidden":false,"merged":[[4,12,4,15]]}
[]
[]
[]
[]
[null,null,null,null,null,null,null,null,null,null,null,null,"должно быть"]
[null,null,null,null,"фамилия","113-219","%","время",null,null,null,null,"фамилия","113-219","%","время"]
[null,null,null,null,"Замятина М.В.",113,0.1,22,null,null,null,null,"Замятина М.В.",113,10,22]
[null,null,null,null,"Замятина М.В.",113,0.2,24,null,null,null,null,"Замятина М.В.",113,20,24]
[null,null,null,null,"Замятина М.В.",219,0.1,16,null,null,null,null,"Замятина М.В.",219,10,16]
[null,null,null,null,"Замятина М.В.",219,0.2,77,null,null,null,null,"Замятина М.В.",219,20,77]
[null,null,null,null,"Костина Л.Я.",113,0.1,14,null,null,null,null,"Костина Л.Я.",113,10,14]
[null,null,null,null,"Костина Л.Я.",219,0.1,16,null,null,null,null,"Костина Л.Я.",113,20,8]
[null,null,null,null,"Костина Л.Я.",219,0.2,35,null,null,null,null,"Костина Л.Я.",219,10,16]
[null,null,null,null,"Петрова",113,0.1,29,null,null,null,null,"Костина Л.Я.",219,20,35]
[null,null,null,null,"Иванова ",113,0.1,15]